bitfinex-derivatives/quotes_BTCF0:USTF0_20250722
["timestamp","ask_amount","ask_price","bid_price","bid_amount"]
[1753194481737,0.2675685,118370.0,118360.0,1.053513]
[1753194482035,0.2675685,118370.0,118360.0,1.054733]
[1753194482537,0.0012,118370.0,118360.0,1.83820716]
[1753194483029,0.0012,118370.0,118360.0,1.415533]
[1753194483527,0.1700687,118370.0,118360.0,1.415533]
[1753194483933,0.0012,118370.0,118360.0,1.415533]
[1753194484129,0.1700687,118370.0,118360.0,1.415533]
[1753194484635,0.0012,118370.0,118360.0,1.415533]
[1753194484836,0.1700687,118370.0,118360.0,1.415533]
[1753194485536,0.1942387,118370.0,118360.0,1.415533]
[1753194487142,0.2054287,118370.0,118360.0,0.814363]
[1753194487333,0.2054287,118370.0,118360.0,1.422123]
[1753194488340,0.1932387,118370.0,118360.0,1.421123]
[1753194488736,0.0002,118370.0,118360.0,1.421123]
[1753194488935,0.1690687,118370.0,118360.0,1.421123]
[1753194489247,0.2051387,118370.0,118360.0,1.419783]
[1753194489942,0.2051387,118370.0,118360.0,1.419003]
[1753194490445,0.1690687,118370.0,118360.0,1.419003]
[1753194490743,0.0002,118370.0,118360.0,1.48735125]
[1753194490935,0.1690687,118370.0,118360.0,1.48735125]
[1753194491243,0.0002,118370.0,118360.0,1.48735125]
[1753194491439,0.1690687,118370.0,118360.0,1.48835125]
[1753194493036,0.0002,118370.0,118360.0,1.48835125]
[1753194493439,0.1690687,118370.0,118360.0,1.48835125]
[1753194493638,0.1690687,118370.0,118360.0,1.49035125]
[1753194494245,0.1933887,118370.0,118360.0,1.49007125]
[1753194494847,0.0002,118370.0,118360.0,1.49007125]
[1753194495143,0.0002,118370.0,118360.0,1.84983305]
[1753194495834,0.1689544,118380.0,118370.0,0.4517287]
[1753194496038,0.2050244,118380.0,118370.0,0.8125287]
[1753194496238,0.5647862,118380.0,118370.0,0.8125287]
[1753194496544,0.2050244,118380.0,118370.0,0.8125287]
[1753194497145,0.2050244,118380.0,118370.0,0.4517287]
[1753194497345,0.2050244,118380.0,118370.0,0.8125287]
[1753194498342,0.03617,118380.0,118370.0,0.8125287]
[1753194498546,0.2050244,118380.0,118370.0,0.8125287]
[1753194498839,0.2050244,118380.0,118370.0,0.4537287]
[1753194499040,1.1496162,118380.0,118370.0,0.4527087]
[1753194499244,1.1978062,118380.0,118370.0,1.0588287]
[1753194499445,0.8370062,118380.0,118370.0,1.0588287]
[1753194499746,0.7888162,118380.0,118370.0,1.0588287]
[1753194500141,0.4290544,118380.0,118370.0,1.0588287]
[1753194500341,0.6758762,118380.0,118370.0,1.0588287]
[1753194501342,0.7888162,118380.0,118370.0,1.0588287]
[1753194501641,1.1978062,118380.0,118370.0,0.28221]
[1753194501843,1.21537622,118380.0,118370.0,1.0570787]
[1753194502946,1.21537622,118380.0,118370.0,1.0560787]
[1753194503342,1.21537622,118380.0,118370.0,0.88721]
[1753194503945,1.21537622,118380.0,118370.0,0.60692]
[1753194504141,1.21537622,118380.0,118370.0,0.60688]
[1753194504341,1.38432822,118380.0,118370.0,0.60688]
[1753194504646,1.21537622,118380.0,118370.0,0.60688]
[1753194505442,1.21537622,118380.0,118370.0,0.8952187]
[1753194505847,1.21537622,118380.0,118370.0,0.72635]
[1753194506149,1.21537622,118380.0,118370.0,1.0565887]
[1753194506848,1.21637622,118380.0,118370.0,1.0565887]
[1753194507148,1.21637622,118380.0,118370.0,0.88772]
[1753194507445,1.21637622,118380.0,118370.0,0.88609]
[1753194508147,0.85661442,118380.0,118370.0,1.0549587]
[1753194508349,1.21637622,118380.0,118370.0,1.0549587]
[1753194508648,1.21637622,118380.0,118370.0,0.88609]
[1753194509349,1.21637622,118380.0,118370.0,1.0549587]
[1753194511049,1.1988062,118380.0,118370.0,1.0549587]
[1753194511351,1.1988062,118380.0,118370.0,0.88609]
[1753194512445,0.8390444,118380.0,118370.0,1.0563087]
[1753194512647,1.0376762,118380.0,118370.0,1.0565087]
[1753194514246,0.06833,118380.0,118370.0,1.0565087]
[1753194514448,0.02542,118380.0,118370.0,1.4183287]
[1753194514646,0.04302364,118380.0,118370.0,1.4183287]
[1753194514948,0.02542,118380.0,118370.0,1.4183287]
[1753194515144,0.0011,118380.0,118370.0,1.4183287]
[1753194516147,0.0011,118380.0,118370.0,1.7780905]
[1753194517150,8e-05,118380.0,118370.0,1.7780905]
[1753194517451,0.18819182,118390.0,118380.0,0.4490644]
[1753194517749,0.20566919,118390.0,118380.0,0.8100644]
[1753194518450,0.03682899,118390.0,118380.0,0.8100644]
[1753194518656,0.20766919,118390.0,118380.0,0.8100644]
[1753194519047,0.03882899,118390.0,118380.0,0.8100644]
[1753194519347,0.004,118390.0,118380.0,1.26207904]
[1753194519544,0.0002,118400.0,118390.0,0.4465702]
[1753194519848,0.1690117,118410.0,118400.0,0.4465559]
[1753194520055,1.03719252,118420.0,118410.0,0.2791817]
[1753194520349,0.99479032,118420.0,118410.0,1.0519417]
[1753194520551,0.99479032,118420.0,118410.0,1.4127417]
[1753194520552,0.63399032,118420.0,118410.0,1.4127417]
[1753194520854,0.61330512,118420.0,118410.0,1.4127417]
[1753194521450,0.1924474,118420.0,118410.0,1.4127417]
[1753194521753,0.1687974,118420.0,118410.0,1.4127417]
[1753194522056,0.6489944,118430.0,118420.0,0.3978074]
[1753194522257,0.65724637,118430.0,118420.0,0.8075274]
[1753194522555,0.21308667,118430.0,118420.0,0.8075274]
[1753194522747,0.1924447,118430.0,118420.0,0.8075274]
[1753194522947,0.5522065,118430.0,118420.0,0.8075274]
[1753194523147,0.5643965,118430.0,118420.0,1.4125674]
[1753194523452,0.5643965,118430.0,118420.0,1.4145674]
[1753194523649,0.57294243,118430.0,118420.0,1.4145674]
[1753194524051,0.57294243,118430.0,118420.0,0.8095274]
[1753194524249,0.57294243,118430.0,118420.0,1.4145274]
[1753194524452,0.5643965,118430.0,118420.0,1.4145274]
[1753194525651,0.3834118,118430.0,118420.0,1.4145274]
[1753194525851,0.6489697,118440.0,118430.0,0.4465132]
[1753194526157,0.6487697,118440.0,118430.0,0.4467132]
[1753194526455,0.6065753,118440.0,118430.0,0.4467132]
[1753194526651,0.25542714,118440.0,118430.0,0.8075132]
[1753194526950,0.21958714,118440.0,118430.0,0.8075132]
[1753194527157,0.1697689,118440.0,118430.0,1.167275]
[1753194527454,0.001,118440.0,118430.0,1.18457392]
[1753194528248,0.001,118440.0,118430.0,1.27291289]
[1753194528852,0.0002,118450.0,118440.0,0.2791389]
[1753194529051,0.2347821,118460.0,118450.0,0.2791247]
[1753194529248,0.2769544,118470.0,118460.0,0.3977504]
[1753194529452,0.2767544,118470.0,118460.0,1.0513104]
[1753194529751,0.6365162,118470.0,118460.0,1.0513104]
[1753194530046,0.9233762,118470.0,118460.0,0.27793]
[1753194530253,0.9233762,118470.0,118460.0,0.87953]
[1753194530653,0.5636144,118470.0,118460.0,0.87953]
[1753194530953,0.8069962,118470.0,118460.0,1.0482704]
[1753194531152,0.2939444,118470.0,118460.0,1.0482704]
[1753194531354,0.2939444,118470.0,118460.0,1.4090704]
[1753194531958,0.6537062,118470.0,118460.0,1.4090704]
[1753194532161,0.9283762,118470.0,118460.0,0.27493]
[1753194532361,0.9283762,118470.0,118460.0,0.87941]
[1753194532557,1.2931762,118470.0,118460.0,0.27493]
[1753194532758,1.2931762,118470.0,118460.0,0.87937]
[1753194532946,1.2931762,118470.0,118460.0,0.0002]
[1753194533152,1.2931762,118470.0,118460.0,0.6046]
[1753194533852,1.2931762,118470.0,118460.0,0.0002]
[1753194534060,1.2931762,118470.0,118460.0,0.6046]
[1753194535353,1.2931762,118470.0,118460.0,0.77196]
[1753194537160,1.2931762,118470.0,118460.0,0.60444]
[1753194537355,1.2931762,118470.0,118460.0,0.0002]
[1753194537356,1.4620002,118470.0,118460.0,0.0002]
[1753194537563,0.378363,118440.0,118430.0,0.83025582]
[1753194537752,0.8390448,118440.0,118430.0,1.51347582]
[1753194537957,0.6709048,118440.0,118430.0,1.51347582]
[1753194538359,0.235123,118440.0,118430.0,1.51347582]
[1753194538552,0.204613,118440.0,118430.0,1.51347582]
[1753194538755,0.169773,118440.0,118430.0,1.87343762]
[1753194538961,0.001,118440.0,118430.0,1.88343762]
[1753194539255,0.2653236,118460.0,118450.0,0.2487887]
[1753194539458,0.02365,118460.0,118450.0,1.7716505]
[1753194539658,0.2889518,118470.0,118460.0,0.4467945]
[1753194539857,0.15382736,118480.0,118460.0,1.1675563]
[1753194540063,0.31621376,118480.0,118470.0,1.0508201]
[1753194540355,0.94211682,118480.0,118470.0,0.27773]
[1753194540555,0.2874501,118470.0,118460.0,0.88177]
[1753194540756,1.1998019,118470.0,118460.0,0.87977]
[1753194540954,1.1998019,118470.0,118460.0,1.0485143]
[1753194541351,0.8390019,118470.0,118460.0,1.0485143]
[1753194541558,0.2045701,118470.0,118460.0,1.4084761]
[1753194541763,0.1687301,118470.0,118460.0,1.7692761]
[1753194542462,0.29949182,118480.0,118470.0,0.3281398]
[1753194542670,0.29549182,118480.0,118470.0,1.1675416]
[1753194542965,0.18748142,118480.0,118470.0,1.25929745]
[1753194543562,0.18748142,118480.0,118470.0,0.89953565]
[1753194545163,0.19967142,118480.0,118470.0,0.89953565]
[1753194545365,0.22332142,118480.0,118470.0,1.4135798]
[1753194545665,0.21113142,118480.0,118470.0,1.4135798]
[1753194546059,0.21113142,118480.0,118470.0,0.8097798]
[1753194546256,0.22332142,118480.0,118470.0,1.4135398]
[1753194546663,0.21113142,118480.0,118470.0,1.4135398]
[1753194547267,0.01875662,118480.0,118470.0,1.7733016]
[1753194547473,0.2345371,118490.0,118480.0,0.4469656]
[1753194547768,0.2345371,118490.0,118480.0,0.8077656]
[1753194547971,0.2467271,118490.0,118480.0,0.4469656]
[1753194548162,0.2467271,118490.0,118480.0,0.4467656]
[1753194548469,0.6064889,118490.0,118480.0,0.4467656]
[1753194548668,0.7140189,118490.0,118480.0,0.4467656]
[1753194548865,0.7140189,118490.0,118480.0,0.8075656]
[1753194549169,0.6074889,118490.0,118480.0,0.8075656]
[1753194549370,0.6074889,118490.0,118480.0,0.82442018]
[1753194549571,0.2355371,118490.0,118480.0,0.82462018]
[1753194551168,0.2355371,118490.0,118480.0,1.42814018]
[1753194551373,0.2472571,118490.0,118480.0,1.42810018]
[1753194554272,0.2462571,118490.0,118480.0,1.42810018]
[1753194554471,0.2347371,118490.0,118480.0,1.43030018]
[1753194555270,0.0002,118490.0,118480.0,1.88158428]
[1753194556068,0.1688977,118490.0,118480.0,1.88158428]
[1753194556472,0.1927877,118490.0,118480.0,1.88158428]
[1753194557068,0.2045077,118490.0,118480.0,0.82662018]
[1753194557269,0.2045077,118490.0,118480.0,1.42990018]
[1753194557871,0.5642695,118490.0,118480.0,0.82662018]
[1753194558072,0.5642695,118490.0,118480.0,1.42978018]
[1753194558771,0.5642695,118490.0,118480.0,1.06898018]
[1753194559072,1.27025077,118490.0,118480.0,0.0022]
[1753194559270,0.4489462,118470.0,118460.0,0.78445]
[1753194559570,0.4728362,118470.0,118460.0,0.9531904]
[1753194559769,0.4728362,118470.0,118460.0,1.0613904]
[1753194559970,0.832598,118470.0,118460.0,1.0613904]
[1753194560172,0.832598,118470.0,118460.0,1.0703904]
[1753194560665,0.832598,118470.0,118460.0,1.0723904]
[1753194561772,0.2043362,118470.0,118460.0,1.0737904]
[1753194562381,0.2043362,118470.0,118460.0,1.0757904]
[1753194562577,0.03561,118470.0,118460.0,1.0757904]
[1753194562768,1.134554,118480.0,118470.0,0.4487362]
[1753194562769,0.2886807,118480.0,118470.0,0.4487362]
[1753194563478,0.6484425,118480.0,118470.0,0.4487362]
[1753194563675,0.9169425,118480.0,118470.0,0.27777]
[1753194563877,1.2777425,118480.0,118470.0,0.90281]
[1753194564287,1.2777425,118480.0,118470.0,0.90381]
[1753194565083,1.29504031,118480.0,118470.0,0.4497362]
[1753194565279,0.93424031,118480.0,118470.0,0.90561]
[1753194565483,1.29504031,118480.0,118470.0,0.90661]
[1753194565681,1.29504031,118480.0,118470.0,0.79617]
[1753194565874,0.93424031,118480.0,118470.0,0.79617]
[1753194566075,1.29504031,118480.0,118470.0,0.79617]
[1753194566384,0.93424031,118480.0,118470.0,1.0730962]
[1753194567984,0.9169425,118480.0,118470.0,1.0730962]
[1753194568286,0.93426448,118480.0,118470.0,1.0730962]
[1753194568784,0.93426448,118480.0,118470.0,0.90661]
[1753194569180,1.29506448,118480.0,118470.0,0.90301]
[1753194569385,0.93426448,118480.0,118470.0,1.0717362]
[1753194570087,0.82056448,118480.0,118470.0,1.0717362]
[1753194570483,0.93426448,118480.0,118470.0,0.27977]
[1753194570687,0.93426448,118480.0,118470.0,0.90285]
[1753194570888,1.29506448,118480.0,118470.0,0.90285]
[1753194571186,0.93426448,118480.0,118470.0,1.0715762]
[1753194573491,1.29506448,118480.0,118470.0,1.0715762]
[1753194573984,0.93426448,118480.0,118470.0,1.0715762]
[1753194574489,0.9169425,118480.0,118470.0,1.0715762]
[1753194578291,0.5571807,118480.0,118470.0,1.0715762]
[1753194578491,0.9171425,118480.0,118470.0,1.0717762]
[1753194579388,0.7562325,118480.0,118470.0,1.0717762]
[1753194581292,0.7562325,118480.0,118470.0,1.0731762]
[1753194581293,0.2467006,118480.0,118470.0,1.0731762]
[1753194581488,0.2349806,118480.0,118470.0,1.0731762]
[1753194581684,0.0002,118480.0,118470.0,1.5260662]
[1753194581889,0.0002,118480.0,118470.0,1.8868662]
[1753194582390,0.1689119,118480.0,118470.0,1.8868662]
[1753194583192,0.1689119,118480.0,118470.0,1.5271044]
[1753194583887,0.0002,118480.0,118470.0,1.8868662]
[1753194584893,0.1934143,118500.0,118490.0,0.4452577]
[1753194585092,0.02473,118500.0,118490.0,1.7835795]
[1753194585292,0.2559821,118510.0,118500.0,0.3984035]
[1753194585493,0.27358331,118510.0,118500.0,0.4438435]
[1753194585694,0.6157439,118510.0,118500.0,0.4438435]
[1753194585893,0.7299339,118510.0,118500.0,0.44370029]
[1753194586193,0.7789939,118510.0,118500.0,0.44370029]
[1753194586395,0.79659497,118510.0,118500.0,0.44370029]
[1753194586795,0.91590497,118510.0,118500.0,0.44370029]
[1753194587093,0.8983039,118510.0,118500.0,0.44370029]
[1753194587988,0.2559821,118510.0,118500.0,0.44370029]
[1753194588296,0.2559821,118510.0,118500.0,0.80450029]
[1753194588792,0.2559821,118510.0,118500.0,1.16566209]
[1753194589295,0.2559821,118510.0,118500.0,0.80450029]
[1753194589296,0.7299339,118510.0,118500.0,0.80450029]
[1753194589490,0.8983039,118510.0,118500.0,0.80450029]
[1753194589790,0.5385421,118510.0,118500.0,0.80450029]
[1753194589994,0.8983039,118510.0,118500.0,0.80450029]
[1753194590294,0.8983039,118510.0,118500.0,0.44370029]
[1753194590497,0.8983039,118510.0,118500.0,0.80450029]
[1753194590701,0.7299339,118510.0,118500.0,0.80450029]
[1753194591191,0.6489139,118510.0,118500.0,0.80450029]
[1753194591397,0.2439821,118510.0,118500.0,0.80590029]
[1753194592097,0.2559821,118510.0,118500.0,0.80590029]
[1753194592292,0.2559821,118510.0,118500.0,0.44510029]
[1753194592497,0.2559821,118510.0,118500.0,0.80590029]
[1753194592692,0.2559821,118510.0,118500.0,1.16566209]
[1753194592693,0.03673,118510.0,118500.0,1.16566209]
[1753194592892,0.02473,118510.0,118500.0,1.16566209]
[1753194593092,0.35070623,118520.0,118510.0,0.2786292]
[1753194593294,0.35070623,118520.0,118510.0,1.0593492]
[1753194594095,0.35070623,118520.0,118510.0,1.0607492]
[1753194594298,0.26637343,118520.0,118510.0,1.0607492]
[1753194594493,0.26637343,118520.0,118510.0,1.420511]
[1753194594895,0.27490211,118520.0,118510.0,1.420511]
[1753194595095,0.27490211,118520.0,118510.0,1.0607492]
[1753194595299,0.05554293,118520.0,118510.0,1.4215492]
[1753194595495,0.01981293,118520.0,118510.0,1.781311]
[1753194595695,0.18846793,118520.0,118510.0,1.781311]
[1753194595894,0.18846793,118520.0,118510.0,1.4215492]
[1753194596296,0.21319793,118520.0,118510.0,1.4215492]
[1753194596497,0.22519793,118520.0,118510.0,1.4215492]
[1753194597392,0.04454293,118520.0,118510.0,1.4215492]
[1753194597801,0.01981293,118520.0,118510.0,1.781311]
[1753194597995,0.01981293,118520.0,118510.0,1.7899577]
[1753194598195,0.01981293,118520.0,118510.0,1.51684605]
[1753194598497,0.01981293,118520.0,118510.0,1.87660785]
[1753194598701,0.01981293,118520.0,118510.0,1.51684605]
[1753194598997,0.01981293,118520.0,118510.0,1.87660785]
[1753194599198,0.18846793,118520.0,118510.0,1.87660785]
[1753194599400,0.01981293,118520.0,118510.0,1.87660785]
[1753194600199,0.18846793,118520.0,118510.0,1.26108785]
[1753194600395,0.21319793,118520.0,118510.0,0.90132605]
[1753194600597,0.58495973,118520.0,118510.0,1.4183492]
[1753194600797,0.74820973,118520.0,118510.0,0.8046292]
[1753194601001,0.86751973,118520.0,118510.0,1.4186292]
[1753194601401,0.86751973,118520.0,118510.0,0.63372]
[1753194601599,1.75703353,118520.0,118510.0,0.0002]
[1753194602707,1.03750993,118520.0,118510.0,0.0002]
[1753194603005,1.22851973,118520.0,118510.0,0.1654]
[1753194604506,1.22851973,118520.0,118510.0,0.11996]
[1753194605002,1.22851973,118520.0,118510.0,0.0002]
[1753194605206,1.58828153,118520.0,118510.0,0.0002]
[1753194605906,0.86875793,118520.0,118510.0,0.0002]
[1753194606108,1.58828153,118520.0,118510.0,0.0002]
[1753194608902,1.58828153,118520.0,118490.0,1.37548711]
[1753194608903,0.1686834,118500.0,118490.0,1.37548711]
[1753194609098,1.2020552,118500.0,118490.0,2.15786481]
[1753194609310,1.2020552,118500.0,118490.0,0.99070481]
[1753194609804,1.2020552,118500.0,118490.0,1.02328481]
[1753194610305,0.3104534,118500.0,118490.0,1.3386877]
[1753194610507,0.3104534,118500.0,118490.0,1.0620377]
[1753194610703,0.6702152,118500.0,118490.0,1.0620377]
[1753194611106,0.3104534,118500.0,118490.0,1.4228377]
[1753194611307,0.2348534,118500.0,118490.0,1.4228377]
[1753194611708,0.2034434,118500.0,118490.0,1.48522658]
[1753194612007,0.2034434,118500.0,118490.0,1.48362658]
[1753194612410,0.5946152,118500.0,118490.0,1.48362658]
[1753194612609,0.8412552,118500.0,118490.0,0.86994658]
[1753194612811,0.8412552,118500.0,118490.0,1.48410658]
[1753194614910,1.2020552,118500.0,118490.0,0.33788888]
[1753194615107,1.2020552,118500.0,118490.0,0.7847377]
[1753194615713,1.2020552,118500.0,118490.0,0.9476677]
[1753194616114,0.8412552,118500.0,118490.0,0.9476677]
[1753194616616,0.8412552,118500.0,118490.0,0.9466677]
[1753194616913,1.2020552,118500.0,118490.0,0.77797]
[1753194617104,1.2020552,118500.0,118490.0,0.73029]
[1753194617610,1.2020552,118500.0,118490.0,0.72929]
[1753194618512,1.2020552,118500.0,118490.0,0.8979877]
[1753194618813,1.2020552,118500.0,118490.0,0.72929]
[1753194619012,1.2020552,118500.0,118490.0,0.9456677]
[1753194619213,0.8412552,118500.0,118490.0,0.9456677]
[1753194619515,0.4814934,118500.0,118490.0,1.0568377]
[1753194619714,0.8412552,118500.0,118490.0,1.0568377]
[1753194619916,1.2020552,118500.0,118490.0,0.88814]
[1753194620113,1.2020552,118500.0,118490.0,0.80955]
[1753194620309,1.2020552,118500.0,118490.0,0.77549]
[1753194620509,1.2020552,118500.0,118490.0,0.61256]
[1753194621210,1.2020552,118500.0,118490.0,0.001]
[1753194621411,0.1687119,118480.0,118470.0,0.47829724]
[1753194621621,0.8412837,118480.0,118470.0,1.08965724]
[1753194621921,0.8412837,118480.0,118470.0,1.04747614]
[1753194622515,0.8412837,118480.0,118470.0,1.00529534]
[1753194622818,1.2020837,118480.0,118470.0,1.00730714]
[1753194623011,0.8412837,118480.0,118470.0,1.00730714]
[1753194623214,1.2020837,118480.0,118470.0,1.00930714]
[1753194623412,1.2020837,118480.0,118470.0,0.84058094]
[1753194623712,1.5618455,118480.0,118470.0,0.63013292]
[1753194623913,1.5618455,118480.0,118470.0,0.61436]
[1753194624118,1.62901367,118480.0,118470.0,0.61436]
[1753194625521,1.62901367,118480.0,118470.0,0.003]
[1753194625718,2.24009367,118480.0,118470.0,0.0032]
[1753194626217,0.3685062,118470.0,118460.0,0.61036]
[1753194626422,1.202098,118470.0,118460.0,0.61036]
[1753194626819,0.4815504,118460.0,118450.0,0.16293]
[1753194627122,1.2021122,118460.0,118450.0,0.61036]
[1753194628012,0.4582447,118450.0,118440.0,0.2741]
[1753194628211,1.2021265,118450.0,118440.0,0.72553]
[1753194628417,1.2021265,118450.0,118440.0,0.61028]
[1753194628613,0.8413265,118450.0,118440.0,1.0531489]
[1753194628823,0.8413265,118450.0,118440.0,1.4139489]
[1753194629026,0.7171465,118450.0,118440.0,1.0531489]
[1753194629920,0.8413265,118450.0,118440.0,1.0531489]
[1753194630323,0.8413265,118450.0,118440.0,1.0551489]
[1753194630825,1.2021265,118450.0,118440.0,0.88638]
[1753194631324,1.2021265,118450.0,118440.0,1.0551489]
[1753194631720,0.8413265,118450.0,118440.0,1.0551489]
[1753194631918,0.84986982,118450.0,118440.0,1.0551489]
[1753194632315,0.84986982,118450.0,118440.0,1.4159489]
[1753194632914,0.84986982,118450.0,118440.0,1.4179489]
[1753194633121,0.84986982,118450.0,118440.0,1.0571489]
[1753194633925,1.21066982,118450.0,118440.0,1.0559889]
[1753194634128,1.21066982,118450.0,118440.0,0.88722]
[1753194634423,1.21066982,118450.0,118440.0,1.0559889]
[1753194635014,0.84986982,118450.0,118440.0,1.0559889]
[1753194636624,1.57043162,118450.0,118440.0,0.004]
[1753194637020,2.17867162,118450.0,118440.0,0.004]
[1753194637423,0.4815789,118440.0,118430.0,0.01729892]
[1753194637725,0.8413407,118440.0,118430.0,0.47222212]
[1753194637929,0.8413407,118440.0,118430.0,1.08022212]
[1753194638225,0.8413407,118440.0,118430.0,0.91143892]
[1753194638429,1.2021407,118440.0,118430.0,0.82064892]
[1753194638732,1.2021407,118440.0,118430.0,0.79106892]
[1753194638930,1.2021407,118440.0,118430.0,0.79406892]
[1753194639429,1.5619025,118440.0,118430.0,0.79406892]
[1753194640325,1.5619025,118440.0,118430.0,0.63113892]
[1753194641223,0.4831374,118420.0,118410.0,0.1949]
[1753194641422,0.4831374,118420.0,118410.0,0.04542]
[1753194641423,1.2036992,118420.0,118410.0,0.04542]
[1753194641619,1.7812817,118410.0,118400.0,0.9706834]
[1753194641824,2.3312335,118410.0,118400.0,0.9706834]
[1753194642026,2.3312335,118410.0,118400.0,1.0489734]
[1753194642418,2.3312335,118410.0,118400.0,1.0612434]
[1753194642828,2.3312335,118410.0,118400.0,0.04542]
[1753194643131,2.6456335,118410.0,118400.0,1.0612859]
[1753194643426,2.6456335,118410.0,118400.0,1.7964477]
[1753194643427,1.5002,118410.0,118400.0,1.7964477]
[1753194643629,1.4906,118410.0,118400.0,2.31197628]
[1753194643832,0.0417481,118430.0,118420.0,0.4419874]
[1753194644026,0.2105313,118430.0,118420.0,1.4096674]
[1753194644532,0.2222113,118430.0,118420.0,1.4096674]
[1753194645128,0.1877213,118430.0,118420.0,1.4096674]
[1753194646533,0.0189381,118430.0,118420.0,1.4096674]
[1753194646931,0.2222113,118430.0,118420.0,0.8027874]
[1753194647135,0.2222113,118430.0,118420.0,1.4093074]
[1753194648432,0.2222113,118430.0,118420.0,1.4101874]
[1753194648837,0.2105313,118430.0,118420.0,1.4111874]
[1753194649033,0.0189381,118430.0,118420.0,2.19318763]
[1753194649333,0.2032162,118470.0,118460.0,0.4419304]
[1753194649633,0.1803996,118480.0,118470.0,0.2791662]
[1753194649840,0.22063721,118480.0,118470.0,0.8027162]
[1753194650635,0.18614721,118480.0,118470.0,0.8027162]
[1753194650831,0.01742761,118480.0,118470.0,0.8027162]
[1753194651028,0.34875972,118490.0,118480.0,0.4419019]
[1753194651233,0.34875972,118490.0,118480.0,1.4089419]
[1753194651634,0.22222802,118490.0,118480.0,1.4089419]
[1753194652835,0.22422802,118490.0,118480.0,1.4089419]
[1753194655040,0.22422802,118490.0,118480.0,0.8027019]
[1753194655239,0.22922802,118490.0,118480.0,1.47768752]
[1753194655842,0.22922802,118490.0,118480.0,0.87156752]
[1753194656133,1.24447825,118490.0,118480.0,1.11688752]
[1753194656439,0.93027825,118490.0,118480.0,1.11688752]
[1753194659437,0.21754802,118490.0,118480.0,1.47768752]
[1753194659938,0.65042825,118490.0,118480.0,1.47760752]
[1753194660237,0.63874825,118490.0,118480.0,1.47760752]
[1753194660438,0.61613825,118490.0,118480.0,1.47780752]
[1753194660639,0.19493802,118490.0,118480.0,1.47780752]
[1753194661041,0.02622832,118490.0,118480.0,1.47780752]
[1753194661236,0.0072,118490.0,118480.0,1.89900775]
[1753194661739,0.0072,118490.0,118480.0,1.56680914]
[1753194661939,0.0062,118490.0,118480.0,1.56680914]
[1753194662438,0.1748977,118490.0,118480.0,1.56680914]
[1753194662641,0.0062,118490.0,118480.0,1.56680914]
[1753194664944,0.0062,118490.0,118480.0,1.57514594]
[1753194665144,0.0062,118490.0,118480.0,1.56680914]
[1753194666250,0.2526127,118530.0,118520.0,0.396425]
[1753194666450,0.67381293,118530.0,118520.0,1.047805]
[1753194666650,0.64378293,118530.0,118520.0,1.047805]
[1753194666852,0.66659293,118530.0,118520.0,1.047805]
[1753194667046,0.6749676,118530.0,118520.0,1.408605]
[1753194667246,0.6749676,118530.0,118520.0,1.047805]
[1753194667446,0.6749676,118530.0,118520.0,1.408605]
[1753194667447,0.2453927,118530.0,118520.0,1.408605]
[1753194668451,0.2483927,118530.0,118520.0,0.802645]
[1753194668750,0.3308327,118530.0,118520.0,0.802645]
[1753194669052,0.89970293,118530.0,118520.0,1.408525]
[1753194669257,0.90370293,118530.0,118520.0,1.047725]
[1753194669547,0.90370293,118530.0,118520.0,0.27319]
[1753194669752,1.3270141,118530.0,118520.0,0.04542]
[1753194669950,0.475095,118520.0,118510.0,0.17141]
[1753194670146,0.89629523,118520.0,118510.0,0.885]
[1753194670539,0.89629523,118520.0,118510.0,1.0536692]
[1753194670740,0.62644523,118520.0,118510.0,1.0536692]
[1753194670943,0.193395,118520.0,118510.0,1.4144692]
[1753194671149,0.3358334,118530.0,118520.0,0.246285]
[1753194671351,0.251507,118530.0,118520.0,0.808615]
[1753194671548,0.249507,118530.0,118520.0,0.808615]
[1753194671750,0.0021,118530.0,118520.0,1.22981523]
[1753194672056,0.0001,118530.0,118520.0,1.22981523]
[1753194672253,0.2107927,118540.0,118530.0,0.4478007]
[1753194672448,0.2107927,118540.0,118530.0,1.4144007]
[1753194672750,0.2226427,118540.0,118530.0,1.4144007]
[1753194672961,0.2473827,118540.0,118530.0,1.4144007]
[1753194673248,0.26468943,118540.0,118530.0,1.4143607]
[1753194673849,0.1716265,118540.0,118530.0,1.96203503]
[1753194674145,0.003,118540.0,118530.0,1.96203503]
[1753194674949,0.005,118540.0,118530.0,1.96203503]
[1753194675546,0.003,118540.0,118530.0,1.96203503]
[1753194675943,0.2107728,118550.0,118540.0,0.1987465]
[1753194676143,0.22807281,118550.0,118540.0,1.22978673]
[1753194676339,0.01730001,118550.0,118540.0,1.29773138]
[1753194677447,0.01882435,118560.0,118550.0,0.4477723]
[1753194677750,0.01882435,118560.0,118550.0,1.83541253]
[1753194677951,0.01882435,118560.0,118550.0,1.92829452]
[1753194678252,0.2776258,118570.0,118560.0,0.4477581]
[1753194678453,0.1933239,118570.0,118560.0,1.22975833]
[1753194678648,0.2894588,118580.0,118570.0,0.4477439]
[1753194678849,0.2894588,118580.0,118570.0,1.4141439]
[1753194679851,0.2776088,118580.0,118570.0,1.83534413]
[1753194680353,0.1705696,118580.0,118570.0,1.83534413]
[1753194680553,0.002,118580.0,118570.0,1.83534413]
[1753194680952,0.1705696,118580.0,118570.0,1.83534413]
[1753194681144,0.1735696,118580.0,118570.0,1.83534413]
[1753194681344,0.005,118580.0,118570.0,1.83534413]
[1753194681550,0.1735696,118580.0,118570.0,1.83534413]
[1753194681857,0.002,118580.0,118570.0,1.83534413]
[1753194682051,0.1725696,118580.0,118570.0,1.83534413]
[1753194682249,0.2091596,118580.0,118570.0,0.8085439]
[1753194682448,0.2091596,118580.0,118570.0,1.4139839]
[1753194682644,0.1973096,118580.0,118570.0,1.4139839]
[1753194682953,0.1955096,118580.0,118570.0,1.83538413]
[1753194683152,0.1965096,118580.0,118570.0,1.83538413]
[1753194683449,0.0032,118580.0,118570.0,1.22994413]
[1753194683656,0.2472749,118600.0,118590.0,0.4477154]
[1753194683956,0.2472749,118600.0,118590.0,1.26213406]
[1753194684153,0.2472749,118600.0,118590.0,0.90133406]
[1753194684350,0.2472749,118600.0,118590.0,1.06988946]
[1753194685252,0.2532749,118600.0,118590.0,1.43068946]
[1753194686358,0.2532749,118600.0,118590.0,1.85188969]
[1753194686661,0.1745486,118600.0,118590.0,1.85188969]
[1753194687650,0.1745486,118600.0,118590.0,1.43068946]
[1753194687856,0.1725486,118600.0,118590.0,1.85188969]
[1753194689258,0.1715486,118600.0,118590.0,1.85188969]
[1753194689764,0.1715486,118600.0,118590.0,1.43068946]
[1753194690057,0.1962886,118600.0,118590.0,1.43068946]
[1753194690262,0.003,118600.0,118590.0,1.85188969]
[1753194691260,0.003,118600.0,118590.0,1.43068946]
[1753194691459,0.1715412,118600.0,118590.0,1.85188969]
[1753194691962,0.003,118600.0,118590.0,1.43068946]